bitfinex/quotes_SOLUSD_20240821
["timestamp","ask_amount","ask_price","bid_price","bid_amount"]
[1724255405189,7.1185,140.48,140.43,23.1977]
[1724255405558,7.119,140.47,140.43,16.0768]
[1724255405884,7.1195,140.46,140.42,17.8033]
[1724255406380,21.53141415,140.45,140.39,0.8209259]
[1724255406581,1.53141415,140.44,140.39,0.8209259]
[1724255406750,7.1225,140.4,140.39,0.8209259]
[1724255406956,7.122,140.41,140.39,0.8209259]
[1724255407266,20.0,140.46,140.39,0.8209259]
[1724255407472,20.0,140.47,140.39,0.8209259]
[1724255408158,7.1212,140.43,140.39,0.8209259]
[1724255409488,8.65301415,140.42,140.39,0.8209259]
[1724255409663,7.1216,140.42,140.39,0.8209259]
[1724255409859,7.122,140.41,140.39,0.8209259]
[1724255410686,7.1225,140.4,140.39,0.8209259]
[1724255410984,7.121,140.43,140.39,0.8209259]
[1724255411154,20.0,140.42,140.39,0.8209259]
[1724255411559,28.65301415,140.42,140.39,0.8209259]
[1724255411779,7.122,140.41,140.39,0.8209259]
[1724255411969,8.65341415,140.41,140.39,0.8209259]
[1724255412489,7.1225,140.4,140.39,0.8209259]
[1724255413497,20.0,140.42,140.39,0.8209259]
[1724255413806,20.0,140.45,140.39,0.8209259]
[1724255414978,7.121,140.43,140.39,0.8209259]
[1724255415787,7.4113608,140.46,140.42,7.1214]
[1724255415967,21.5324,140.48,140.4,15.1783]
[1724255416170,7.1198,140.46,140.4,22.3006]
[1724255416572,7.1198,140.46,140.41,7.1218]
[1724255416992,7.119,140.47,140.42,7.1214]
[1724255417690,7.1185,140.48,140.43,7.1208]
[1724255418885,7.1185,140.48,140.41,17.8044]
[1724255418886,1.53141415,140.47,140.41,24.9263]
[1724255419068,7.1201,140.45,140.41,17.8044]
[1724255419677,17.7942,140.5,140.41,17.8044]
[1724255419873,7.1184,140.48,140.41,17.8044]
[1724255420080,27.86371471,140.53,140.41,17.8044]
[1724255420282,7.1177,140.5,140.45,7.1198]
[1724255420885,25.20413338,140.53,140.46,7.1193]
[1724255421101,7.41363338,140.53,140.46,16.2349]
[1724255421276,7.1165,140.52,140.47,7.1185]
[1724255421492,7.1169,140.51,140.46,23.3542]
[1724255421687,7.1177,140.5,140.46,16.2349]
[1724255421909,1.53141415,140.49,140.46,16.2349]
[1724255422203,17.7916,140.52,140.46,16.2349]
[1724255422378,20.0,140.53,140.46,16.2349]
[1724255422697,7.1173,140.51,140.46,23.354]
[1724255422920,21.53141415,140.54,140.47,7.1189]
[1724255422921,20.0,140.5,140.47,7.1189]
[1724255423084,7.1169,140.51,140.46,41.1523]
[1724255423280,27.1174,140.5,140.46,34.033]
[1724255423775,20.0,140.5,140.46,41.1523]
[1724255424400,7.42026106,140.55,140.46,34.033]
[1724255424587,20.0,140.54,140.48,17.7957]
[1724255424909,7.1159,140.53,140.49,7.1177]
[1724255425300,7.1165,140.52,140.48,17.7957]
[1724255426109,7.1159,140.53,140.48,24.9141]
[1724255426278,20.0,140.52,140.48,24.9141]
[1724255427315,7.1159,140.53,140.48,24.9141]
[1724255427910,7.1175,140.5,140.46,16.2349]
[1724255428486,7.1179,140.49,140.46,16.2349]
[1724255428879,7.1184,140.48,140.46,16.2349]
[1724255429079,7.118,140.49,140.46,16.2349]
[1724255429518,7.1176,140.5,140.46,16.2349]
[1724255429719,7.117,140.51,140.46,16.2349]
[1724255430017,7.1165,140.52,140.47,7.1185]
[1724255430601,1.53141415,140.51,140.46,16.2349]
[1724255430913,17.7902,140.53,140.46,23.3543]
[1724255431084,20.0,140.52,140.46,23.3543]
[1724255431285,7.117,140.51,140.46,23.3543]
[1724255431907,27.1165,140.52,140.47,7.1189]
[1724255432214,81.37484209,140.58,140.47,17.7967]
[1724255432215,1.53141415,140.57,140.47,17.7967]
[1724255432510,7.1155,140.54,140.5,7.1173]
[1724255432714,7.1149,140.55,140.5,7.1173]
[1724255433519,7.1154,140.54,140.5,7.1173]
[1724255434419,7.41098064,140.58,140.5,21.9668]
[1724255435818,20.0,140.57,140.5,21.9668]
[1724255436290,45.0,140.56,140.5,21.9668]
[1724255436490,21.53141415,140.55,140.5,15.3023]
[1724255436707,7.1169,140.51,140.5,15.3023]
[1724255436931,39.31921415,140.55,140.46,47.0827]
[1724255437222,7.1179,140.49,140.46,22.1655]
[1724255437418,7.117,140.51,140.46,29.2847]
[1724255437602,26.2387,140.55,140.47,17.7967]
[1724255437793,7.1159,140.53,140.48,7.118]
[1724255438122,20.0,140.55,140.46,22.1655]
[1724255438412,45.0,140.54,140.46,22.1655]
[1724255438616,7.1173,140.51,140.46,29.2845]
[1724255439688,62.7893,140.54,140.46,22.1655]
[1724255439892,7.1179,140.49,140.46,22.1655]
[1724255440521,7.1176,140.5,140.46,22.1655]
[1724255441024,7.1164,140.52,140.46,39.9634]
[1724255441215,20.0,140.51,140.46,39.9634]
[1724255441413,27.117,140.51,140.46,39.9634]
[1724255441806,7.1165,140.52,140.47,7.1189]
[1724255443929,7.1159,140.53,140.46,39.9634]
[1724255444622,7.1149,140.55,140.48,17.7955]
[1724255444803,7.1144,140.56,140.48,15.6149]
[1724255445004,7.1144,140.56,140.49,45.0]
[1724255445201,7.41989337,140.59,140.49,45.0]
[1724255445430,7.41989337,140.59,140.5,6.0482]
[1724255445931,7.41989337,140.59,140.51,0.89031936]
[1724255446110,7.41989337,140.59,140.5,6.0482]
[1724255446111,7.1138,140.58,140.53,7.1155]
[1724255446496,7.1139,140.57,140.52,24.9067]
[1724255446693,7.1139,140.57,140.53,7.1158]
[1724255447103,14.53319337,140.59,140.53,16.1668]
[1724255447309,23.9018,140.63,140.53,16.1668]
[1724255447626,7.1129,140.59,140.53,16.1668]
[1724255447828,1.53141415,140.62,140.53,16.1668]
[1724255448123,31.32168206,140.63,140.53,16.1668]
[1724255448496,45.0,140.62,140.53,16.1668]
[1724255448920,7.1137,140.58,140.53,23.2825]
[1724255449728,20.0,140.61,140.53,23.2825]
[1724255449729,7.113,140.59,140.54,7.1153]
[1724255450398,1.53141415,140.6,140.53,16.1668]
[1724255450597,7.1131,140.59,140.54,7.1153]
[1724255451018,20.0,140.58,140.54,7.1153]
[1724255451209,7.1131,140.59,140.54,7.1153]
[1724255452320,7.1131,140.59,140.53,16.1668]
[1724255452620,7.1131,140.59,140.54,7.1152]
[1724255453106,13.54378206,140.63,140.54,7.1152]
[1724255453107,7.1134,140.58,140.54,7.1152]
[1724255453307,7.1134,140.58,140.53,23.2826]
[1724255453612,7.1149,140.55,140.53,16.1668]
[1724255454426,19.31311415,140.6,140.53,16.1668]
[1724255454427,1.53141415,140.6,140.53,16.1668]
[1724255454600,7.115,140.55,140.53,16.1668]
[1724255455302,7.1154,140.54,140.53,16.1668]
[1724255455509,7.116,140.53,140.5,6.0482]
[1724255455804,7.1158,140.54,140.5,6.0482]
[1724255456017,7.116,140.53,140.5,6.0482]
[1724255458139,1.53141415,140.57,140.5,6.0482]
[1724255458140,7.1164,140.52,140.5,6.0482]
[1724255458519,7.116,140.53,140.5,6.0482]
[1724255459452,7.41223251,140.55,140.49,16.2014]
[1724255459453,7.1169,140.51,140.49,16.2014]
[1724255460435,7.1174,140.5,140.49,16.2014]
[1724255460819,7.117,140.51,140.49,16.2014]
[1724255462129,7.1163,140.53,140.49,16.2014]
[1724255462831,7.41223251,140.55,140.5,7.1173]
[1724255462832,14.52723251,140.55,140.5,7.1173]
[1724255463036,7.115,140.55,140.5,7.1173]
[1724255464118,7.1144,140.56,140.52,6.615]
[1724255465123,7.1151,140.55,140.52,6.615]
[1724255465849,7.1156,140.54,140.52,6.615]
[1724255466348,7.1156,140.54,140.49,47.7403]
[1724255466914,7.1156,140.54,140.5,7.1174]
[1724255467133,7.116,140.53,140.49,47.7404]
[1724255467627,7.1154,140.54,140.49,47.7404]
[1724255468523,25.19493932,140.59,140.49,47.7404]
[1724255468524,7.1159,140.53,140.49,47.7404]
[1724255468948,7.1159,140.53,140.49,40.6225]
[1724255469132,7.1164,140.52,140.49,22.8285]
[1724255469317,7.116,140.53,140.49,22.8285]
[1724255469953,7.1169,140.51,140.49,22.8285]
[1724255470420,7.1169,140.51,140.49,16.2014]
[1724255470623,7.1185,140.48,140.46,15.8447]
[1724255471646,7.1179,140.49,140.46,15.8447]
[1724255472032,7.1173,140.51,140.46,15.8447]
[1724255472250,27.1174,140.5,140.46,15.8447]
[1724255472449,7.117,140.51,140.46,22.9641]
[1724255472830,7.1165,140.52,140.47,7.1189]
[1724255473649,7.116,140.53,140.48,7.1183]
[1724255474041,7.1164,140.52,140.48,7.1183]
[1724255474451,1.53141415,140.54,140.46,15.8447]
[1724255474629,7.1169,140.51,140.46,22.9641]
[1724255475255,7.1175,140.5,140.46,15.8447]
[1724255475433,7.1175,140.5,140.46,22.964]
[1724255475626,7.117,140.51,140.46,22.964]
[1724255477161,7.1165,140.52,140.47,7.1187]
[1724255477459,7.1165,140.52,140.48,7.1183]
[1724255477657,7.1169,140.51,140.46,15.8447]
[1724255478536,7.1169,140.51,140.46,22.9637]
[1724255480044,7.40823644,140.54,140.47,7.1187]
[1724255480250,7.1155,140.54,140.47,17.7969]
[1724255480462,7.1155,140.54,140.49,7.1178]
[1724255480837,17.7864,140.56,140.47,24.9154]
[1724255481166,7.1165,140.52,140.47,24.9154]
[1724255482758,7.1159,140.53,140.47,17.7969]
[1724255483060,7.117,140.51,140.47,17.7969]
[1724255483262,19.32051415,140.54,140.46,15.8447]
[1724255483439,20.0,140.53,140.46,15.8447]
[1724255483641,20.0,140.53,140.45,6.2038]
[1724255483642,7.1204,140.44,140.43,15.0359]
[1724255483950,41.8972,140.53,140.43,15.0359]
[1724255484268,45.0,140.52,140.43,15.0359]
[1724255484475,20.0,140.51,140.43,15.0359]
[1724255484641,45.0,140.5,140.43,15.0359]
[1724255484841,7.119,140.47,140.43,15.0359]
[1724255486066,20.0,140.51,140.43,15.0359]
[1724255486367,55.5593,140.61,140.43,22.1568]
[1724255486368,7.1184,140.49,140.43,22.1568]
[1724255486665,20.0,140.48,140.43,22.1568]
[1724255486978,55.5593,140.61,140.43,15.0359]
[1724255486979,7.1174,140.5,140.43,15.0359]
[1724255487879,7.1174,140.5,140.45,7.1199]
[1724255488047,19.67192469,140.55,140.44,17.8001]
[1724255488253,2.69608372,140.55,140.46,6.0496]
[1724255488446,7.1157,140.54,140.47,7.1184]
[1724255488754,7.1159,140.53,140.48,23.2246]
[1724255489654,27.1164,140.52,140.48,16.1063]
[1724255489853,7.1169,140.51,140.48,16.1063]
[1724255490573,20.0,140.52,140.48,16.1063]
[1724255490876,7.41000481,140.54,140.48,16.1063]
[1724255491189,20.0,140.53,140.48,16.1063]
[1724255491362,7.1164,140.52,140.48,16.1063]
[1724255491567,27.1159,140.53,140.48,16.1063]
[1724255491757,7.1149,140.55,140.49,7.1175]
[1724255492086,7.1149,140.55,140.5,7.1173]
[1724255493180,20.0,140.54,140.5,7.1173]
[1724255493755,20.0,140.54,140.49,17.794]
[1724255493961,20.0,140.58,140.49,17.794]
[1724255494492,20.0,140.58,140.49,24.9118]
[1724255494778,7.115,140.55,140.5,7.117]
[1724255495283,20.0,140.54,140.5,7.117]
[1724255497368,20.0,140.54,140.51,7.1169]
[1724255497675,20.0,140.56,140.52,7.1163]
[1724255497984,27.1144,140.56,140.52,7.1163]
[1724255498974,7.115,140.55,140.51,7.1168]
[1724255499167,20.0,140.54,140.51,7.1168]
[1724255502589,20.0,140.54,140.51,7.1167]
[1724255502767,20.0,140.55,140.51,7.1167]
[1724255503467,27.1149,140.55,140.51,7.1167]
[1724255503896,7.1155,140.54,140.5,13.5847]
[1724255504266,7.116,140.53,140.5,6.4674]
[1724255504772,7.1167,140.52,140.48,16.1063]
[1724255504961,20.0,140.55,140.48,16.1063]
[1724255504962,7.1169,140.51,140.48,16.1063]
[1724255505166,7.1176,140.5,140.48,16.1063]
[1724255505364,7.1175,140.5,140.48,16.1063]
[1724255506292,7.117,140.51,140.48,16.1063]
[1724255506504,7.1164,140.52,140.48,16.1063]
[1724255507562,7.116,140.53,140.48,16.1063]
[1724255508482,7.116,140.53,140.48,23.2246]
[1724255508789,7.1165,140.52,140.48,16.1063]
[1724255508996,7.117,140.51,140.48,16.1063]
[1724255509287,20.0,140.55,140.48,16.1063]
[1724255509523,7.1167,140.52,140.48,16.1063]
[1724255509869,7.117,140.51,140.48,16.1063]
[1724255511298,7.1165,140.52,140.48,16.1063]
[1724255513387,7.1165,140.52,140.48,23.2246]
[1724255513562,7.1165,140.52,140.48,16.1063]
[1724255513993,7.117,140.51,140.48,16.1063]
[1724255515397,7.1165,140.52,140.48,16.1063]
[1724255515575,20.0,140.55,140.48,33.902]
[1724255515780,20.0,140.55,140.49,7.1175]
[1724255517069,7.116,140.53,140.49,7.1175]
[1724255518461,7.1165,140.52,140.48,33.902]
[1724255520599,20.0,140.55,140.48,33.902]
[1724255520600,7.1174,140.5,140.48,16.1063]
[1724255521072,7.117,140.51,140.48,16.1063]
[1724255521785,20.0,140.55,140.48,23.2247]
[1724255521786,7.1164,140.52,140.48,23.2247]
[1724255521982,20.0,140.55,140.48,23.2247]
[1724255521983,7.116,140.53,140.48,23.2247]
[1724255522183,7.116,140.53,140.49,7.1178]
[1724255522384,7.116,140.53,140.48,23.2246]
[1724255522572,7.116,140.53,140.49,7.1178]
[1724255523697,7.1155,140.54,140.5,7.1173]
[1724255523975,27.1152,140.55,140.5,7.1173]
[1724255524283,7.40890647,140.57,140.49,17.7946]
[1724255524284,7.1144,140.56,140.49,17.7946]
[1724255524618,7.1144,140.56,140.51,7.1168]
[1724255526301,7.40890647,140.57,140.52,16.1974]
[1724255526498,22.86837945,140.63,140.52,16.1974]
[1724255526702,17.7752,140.65,140.57,7.1138]
[1724255526899,7.1117,140.62,140.58,15.0718]
[1724255527897,27.77588053,140.65,140.58,22.1851]
[1724255528098,7.1109,140.63,140.58,22.1851]
[1724255528295,7.1114,140.62,140.58,15.0718]
[1724255529823,7.1119,140.61,140.58,15.0718]
[1724255531726,66.53141415,140.6,140.53,15.914]
[1724255531898,7.1154,140.54,140.53,15.914]
[1724255532098,7.1166,140.52,140.5,6.2098]
[1724255532524,7.117,140.51,140.49,16.5125]
[1724255532723,7.1174,140.5,140.46,6.4005]
[1724255533100,7.1169,140.51,140.46,6.4005]
[1724255533626,7.1169,140.51,140.46,13.5197]
[1724255533836,7.1164,140.52,140.46,13.5197]
[1724255534405,7.1171,140.51,140.46,13.5197]
[1724255534604,7.1175,140.5,140.46,6.4005]
[1724255535425,7.1169,140.52,140.47,7.1189]
[1724255535844,7.1145,140.56,140.5,7.1173]
[1724255536010,43.8567,140.6,140.46,6.4005]
[1724255536212,7.1154,140.54,140.5,17.7928]
[1724255536633,7.1154,140.54,140.48,7.1184]
[1724255538628,7.116,140.53,140.48,7.1184]
[1724255539736,7.1165,140.52,140.47,24.916]
[1724255540107,1.53141415,140.55,140.47,17.7972]
[1724255540402,7.117,140.51,140.47,17.7972]
[1724255540802,7.1176,140.5,140.46,6.4005]
[1724255541007,19.32071415,140.54,140.46,6.4005]
[1724255541222,65.0,140.53,140.46,6.4005]
[1724255541845,7.1175,140.5,140.46,6.4005]
[1724255543141,7.118,140.49,140.46,6.4005]
[1724255543313,20.0,140.53,140.46,6.4005]
[1724255543639,7.1177,140.5,140.46,6.4005]
[1724255545737,7.1177,140.5,140.46,13.5199]
[1724255545922,21.53141415,140.53,140.46,31.3179]
[1724255546120,7.1172,140.51,140.46,31.3179]
[1724255546324,7.1178,140.5,140.46,24.1986]
[1724255546633,7.118,140.49,140.46,6.4005]
[1724255547213,7.1175,140.5,140.46,6.4005]
[1724255548422,20.0,140.53,140.46,6.4005]
[1724255548623,27.116,140.53,140.48,7.118]
[1724255548938,7.116,140.53,140.49,7.1177]
[1724255550443,7.1154,140.55,140.49,7.1177]
[1724255550739,7.1149,140.55,140.5,7.1172]
[1724255550943,7.1149,140.55,140.51,23.7356]
[1724255551248,7.1149,140.55,140.51,16.6188]
[1724255551418,7.1154,140.54,140.51,16.6188]
[1724255551919,7.115,140.55,140.51,16.6188]
[1724255552839,7.1154,140.54,140.51,16.6188]
[1724255554048,7.1159,140.53,140.51,16.6188]
[1724255554933,7.1164,140.52,140.51,16.6188]
[1724255555125,7.1178,140.5,140.47,16.2423]
[1724255555445,7.117,140.51,140.47,16.2423]
[1724255556441,1.53141415,140.53,140.47,16.2423]
[1724255556623,1.53141415,140.52,140.44,7.1203]
[1724255556826,7.1184,140.48,140.43,40.625]
[1724255557843,7.119,140.47,140.43,33.5044]
[1724255559050,7.1194,140.46,140.41,7.1218]
[1724255559370,7.1202,140.45,140.4,41.214]
[1724255559645,7.1205,140.44,140.4,34.0917]
[1724255559819,7.1211,140.43,140.39,0.8209259]
[1724255560223,1.53141415,140.46,140.39,0.8209259]
[1724255560224,7.1216,140.42,140.39,0.8209259]
[1724255560632,7.1209,140.43,140.39,0.8209259]
[1724255560839,7.1205,140.44,140.39,7.9438259]
[1724255561044,21.4713,140.51,140.41,7.1218]
[1724255561045,17.7956,140.49,140.41,7.1218]
[1724255561251,7.12,140.45,140.4,7.1223]
[1724255561747,20.0,140.48,140.4,7.1223]
[1724255562157,7.12,140.45,140.4,7.1223]
[1724255562450,7.12,140.45,140.41,7.1219]
[1724255562962,7.1196,140.46,140.42,7.1214]
[1724255564260,20.0,140.48,140.42,7.1214]
[1724255564261,7.1189,140.47,140.42,7.1214]
[1724255564966,7.1189,140.47,140.43,7.1208]
[1724255565170,7.1195,140.46,140.42,7.1213]
[1724255566267,7.1195,140.46,140.41,17.8046]
[1724255566268,7.1195,140.46,140.41,24.9265]
[1724255566872,7.1199,140.45,140.41,24.9265]
[1724255567073,21.53141415,140.48,140.41,24.9265]
[1724255567246,7.1203,140.45,140.41,17.8046]
[1724255567454,7.1203,140.45,140.39,0.8209259]
[1724255567455,7.1205,140.44,140.39,7.9437259]
[1724255567641,7.1213,140.43,140.39,0.8209259]
[1724255568455,7.1213,140.43,140.39,7.9438259]
[1724255568848,7.1206,140.44,140.39,7.9438259]
[1724255570251,7.1206,140.44,140.4,7.1224]
[1724255571171,37.7965,140.48,140.43,7.1208]
[1724255571172,20.0,140.48,140.43,7.1208]
[1724255571384,7.41764614,140.49,140.42,34.0939]
[1724255571685,39.2646,140.51,140.42,34.0939]
[1724255571686,7.1188,140.48,140.44,7.1201]
[1724255571845,7.118,140.49,140.45,7.1198]
[1724255572550,46.63593605,140.54,140.45,7.1198]
[1724255572783,7.1175,140.5,140.45,7.1198]
[1724255573484,7.1181,140.49,140.44,24.9211]
[1724255573656,7.1185,140.48,140.44,24.9211]
[1724255573861,7.1185,140.48,140.44,17.8008]
[1724255574380,17.7916,140.52,140.42,29.8674]
[1724255574381,7.1189,140.47,140.42,29.8674]
[1724255574551,7.1195,140.46,140.42,23.412]
[1724255574884,7.1191,140.47,140.42,23.412]
[1724255578067,7.1191,140.47,140.43,7.1208]
[1724255578266,7.1185,140.48,140.44,7.1204]
[1724255578677,7.118,140.49,140.45,7.1198]
[1724255580973,7.117,140.51,140.47,7.1186]
[1724255581183,6.89927446,140.57,140.48,15.4866]
[1724255581478,14.31729764,140.57,140.48,15.4866]
[1724255581654,15.84871179,140.57,140.48,15.4866]
[1724255582081,15.84871179,140.57,140.48,22.6049]
[1724255582082,7.1164,140.52,140.48,22.6049]
[1724255582979,7.1159,140.53,140.49,7.1179]
[1724255585068,7.1179,140.49,140.48,15.4866]
[1724255585279,19.32261415,140.52,140.45,6.2352]
[1724255585473,20.0,140.51,140.45,6.2352]
[1724255586194,7.1177,140.5,140.45,13.3547]
[1724255587396,27.117,140.51,140.46,17.7981]
[1724255587573,7.1165,140.52,140.48,7.1184]
[1724255587770,7.116,140.53,140.48,7.1184]
[1724255587971,7.1165,140.52,140.48,7.1184]
[1724255592784,7.1159,140.53,140.48,7.1184]
[1724255593185,25.19395588,140.58,140.49,16.3435]
[1724255593598,7.1152,140.55,140.49,16.3435]
[1724255593779,7.1152,140.55,140.5,24.9104]
[1724255595975,25.19395588,140.58,140.5,17.7932]
[1724255596181,20.0,140.57,140.5,17.7932]
[1724255596603,7.1158,140.54,140.5,17.7932]
[1724255596779,7.116,140.53,140.49,23.4611]
[1724255600106,17.7863,140.56,140.49,16.3435]
[1724255600277,7.1169,140.51,140.49,16.3435]
[1724255600504,7.1164,140.53,140.49,16.3435]
[1724255601189,7.1165,140.52,140.49,16.3435]
[1724255604198,7.1169,140.51,140.49,16.3435]
[1724255604505,17.7889,140.54,140.49,16.3435]
[1724255604804,7.1172,140.51,140.49,16.3435]
[1724255605304,7.1164,140.53,140.49,16.3435]
[1724255605494,7.1164,140.53,140.49,23.4612]
[1724255606381,7.1155,140.54,140.49,23.4612]
[1724255606790,7.1155,140.54,140.5,7.1173]
[1724255607709,7.1149,140.55,140.51,7.1168]
[1724255609185,7.1149,140.55,140.51,13.5795]
[1724255611985,20.0,140.57,140.52,7.1163]
[1724255612215,20.0,140.59,140.51,24.2546]
[1724255612406,7.1142,140.57,140.53,7.1159]
[1724255614104,7.1135,140.58,140.53,7.1159]
[1724255614406,7.1139,140.57,140.52,7.1162]
[1724255615298,7.1134,140.58,140.54,7.1153]
[1724255615839,7.1125,140.6,140.56,22.3256]
[1724255616116,7.1104,140.64,140.59,7.1123]
[1724255616413,7.111,140.63,140.59,7.1123]
[1724255618795,7.111,140.63,140.58,7.1132]
[1724255620719,7.1116,140.62,140.58,7.1132]
[1724255621703,7.1109,140.63,140.58,7.1132]
[1724255622926,7.1099,140.65,140.6,23.3244]
[1724255625325,7.1099,140.65,140.61,7.1118]
[1724255626292,25.18525147,140.69,140.62,7.1112]
[1724255626595,7.1092,140.67,140.62,7.1112]
[1724255627293,7.1092,140.67,140.6,16.2125]
[1724255627294,7.1073,140.7,140.66,7.1089]
[1724255627500,7.1069,140.71,140.66,7.1089]
[1724255627886,35.5316,140.72,140.64,15.3885]
[1724255628112,7.1098,140.65,140.64,15.3885]
[1724255628821,1.53141415,140.68,140.6,22.1465]
[1724255629319,7.1105,140.64,140.6,22.1465]
[1724255631006,7.1113,140.62,140.6,15.5614]
[1724255631520,7.1109,140.63,140.6,15.5614]
[1724255632698,7.1104,140.64,140.6,15.5614]
[1724255632901,7.1099,140.65,140.6,22.6734]
[1724255634218,7.1104,140.64,140.6,22.6734]
[1724255635609,7.1099,140.65,140.61,7.1118]
[1724255635929,1.53141415,140.64,140.6,15.5614]
[1724255636102,7.1109,140.63,140.6,15.5614]
[1724255637589,7.1118,140.61,140.6,15.5614]
[1724255637792,7.1116,140.62,140.6,15.5614]
[1724255639039,7.1108,140.63,140.6,15.5614]
[1724255639530,7.1105,140.64,140.6,15.5614]
[1724255640023,7.1108,140.63,140.6,15.5614]
[1724255640226,25.18770929,140.68,140.6,15.5614]
[1724255640227,7.1113,140.62,140.6,15.5614]
[1724255640527,7.1114,140.62,140.6,15.5614]
[1724255641101,7.1109,140.63,140.6,15.5614]
[1724255643023,7.1105,140.64,140.6,15.5614]
[1724255643203,7.1105,140.64,140.6,22.6734]
[1724255643897,7.1098,140.65,140.61,7.1118]
[1724255644102,7.41630929,140.68,140.61,24.891]
[1724255644403,17.7704,140.69,140.61,24.891]
[1724255644707,45.0,140.68,140.61,24.891]
[1724255644921,7.1102,140.65,140.61,17.7793]
[1724255646438,7.41653651,140.69,140.62,6.5372]
[1724255646742,7.1084,140.68,140.64,7.1102]
[1724255647233,7.1091,140.67,140.62,6.5372]
[1724255648216,7.1091,140.67,140.62,13.6481]
[1724255649338,7.1091,140.67,140.62,6.5372]
[1724255649524,7.1091,140.67,140.62,13.6484]
[1724255650140,7.1091,140.67,140.63,7.1106]
[1724255655629,27.76380078,140.72,140.63,17.7768]
[1724255655826,7.1084,140.68,140.64,7.1101]
[1724255656641,7.1088,140.67,140.63,24.8872]
[1724255657024,7.1093,140.66,140.63,17.7768]
[1724255657350,7.1089,140.67,140.63,24.8876]
[1724255657846,7.1087,140.68,140.64,7.1102]
[1724255658139,70.19053564,140.71,140.63,17.7768]
[1724255658346,20.0,140.7,140.63,17.7768]
[1724255658851,7.1088,140.67,140.63,24.8875]
[1724255661723,7.1093,140.66,140.63,17.7768]
[1724255662019,7.1093,140.66,140.62,13.6484]
[1724255662841,7.11,140.65,140.62,6.5372]
[1724255663828,7.1094,140.66,140.62,13.6485]
[1724255664549,7.1094,140.66,140.6,33.3414]
[1724255664550,1.53141415,140.65,140.6,33.3414]
[1724255664729,17.7724,140.67,140.6,33.3414]
[1724255664730,21.53141415,140.66,140.6,33.3414]
[1724255665131,7.1105,140.64,140.6,33.3414]
[1724255665547,7.1105,140.64,140.6,40.4537]
[1724255665856,7.1098,140.65,140.61,7.1117]
[1724255666156,7.1094,140.66,140.62,7.1113]
[1724255666639,7.1089,140.67,140.62,7.1113]
[1724255667044,17.7693,140.7,140.62,7.1113]
[1724255667247,7.1093,140.66,140.62,7.1113]
[1724255667623,7.1082,140.69,140.63,22.1437]
[1724255667825,7.1082,140.69,140.64,24.8857]
[1724255668434,7.1082,140.69,140.65,7.1097]
[1724255669951,7.1082,140.69,140.64,24.8857]
[1724255670165,7.1085,140.68,140.64,17.7755]
[1724255670451,7.1085,140.68,140.64,24.8858]
[1724255672451,7.1088,140.67,140.64,17.7755]
[1724255672652,7.1102,140.65,140.63,22.1437]
[1724255672944,7.1095,140.66,140.63,22.1437]
[1724255675163,6.73366381,140.66,140.63,22.1437]
[1724255679275,7.1098,140.65,140.63,15.7804]
[1724255679437,7.1103,140.64,140.63,15.7804]
[1724255679632,7.11,140.65,140.63,15.7804]
[1724255680333,7.1115,140.62,140.59,21.1927]
[1724255680733,7.111,140.63,140.59,21.1927]
[1724255682050,7.111,140.63,140.59,28.3055]
[1724255683062,7.1114,140.62,140.59,21.1927]